Cogmind - Beta 13 @@@ ROGUE MODE // 2024.06.09 @ 12:27:48 Player: TTEE1 Result: Destroyed by G-47 Trooper with Particle Gun Performance ------------- Evolutions (2) 1000 Regions Visited (4) 800 Robots Destroyed (72) 360 Value Destroyed (2063) 2063 Prototype IDs (1) 20 Alien Tech Used (0) 0 Bonus (204) 204 TOTAL SCORE: 4447 Bonus ------- High Alert Combat Kills 4 Entered Garrisons 200 Cogmind --------- Core Integrity 0/550 Matter 22/300 Energy 100/100 System Corruption 5% Temperature Cool (9) Movement Core (750) Ox14 Location -8/Garrison Parts ------- > --- POWER (1) -------- (None) > --- PROPULSION (2) --- (None) > --- UTILITY (4) ------ High-capacity Storage Unit Terrain Scan Processor > --- WEAPON (4) ------- Power Maul > --- INVENTORY (20) --- Light Treads Light Treads Armored Treads Armored Treads Improved Cooling System Improved Cooling System Structural Scanner Reaction Control System Missile Launcher Improved Datajack Improved Datajack Peak State ------------ > --- POWER ------------ Light Ion Engine > --- PROPULSION ------- Armored Treads Wheel > --- UTILITY ---------- High-capacity Storage Unit Improved Terrain Scanner Terrain Scan Processor Hacking Suite > --- WEAPON ----------- Spread Laser Improved Light Cannon Rocket Launcher Power Maul > --- INVENTORY -------- Nuclear Core Light Treads Light Treads Armored Treads Armored Treads Wheel Wheel Improved Cooling System Improved Cooling System Structural Scanner Reaction Control System Light Armor Plating Missile Launcher Missile Launcher Missile Launcher Improved Datajack Improved Datajack Power Maul [Rating: 28] Favorites ----------- Power Ion Engine Engine Ion Engine Power Core Nuclear Core Propulsion Light Treads Treads Light Treads Wheel Wheel Utility Improved Terrain Scanner Device Improved Terrain Scanner Storage Small Storage Unit Processor Terrain Scan Processor Hackware Hacking Suite Protection Light Armor Plating Weapon Shotgun Energy Gun Spread Laser Ballistic Gun Shotgun Ballistic Cannon Improved Light Cannon Launcher Missile Launcher Special Weapon Mining Laser Impact Weapon Power Maul Special Melee Weapon Datajack Build | -11 -10 -9 -8 -8 ------- Run | Yrd Mat Mat Mat Gar Slots Evolved 4 | . . 2 2 . Power . | . . . . . Propulsion . | . . . . . Utility 2 | . . 1 1 . Weapon 2 | . . 1 1 . Parts Attached 52 | 8 1 18 19 6 Power 4 | 1 . 1 2 . Engine 3 | 1 . 1 1 . Core 1 | . . . 1 . Reactor . | . . . . . Propulsion 11 | 2 . 5 2 2 Treads 6 | 1 . 3 1 1 Leg . | . . . . . Wheel 5 | 1 . 2 1 1 Hover . | . . . . . Flight . | . . . . . Utility 13 | 3 . 4 5 1 Device 5 | 2 . 1 2 . Storage 4 | 1 . 1 2 . Processor 1 | . . . 1 . Hackware 1 | . . 1 . . Protection 2 | . . 1 . 1 Artifact . | . . . . . Weapon 24 | 2 1 8 10 3 Energy Gun 2 | . . 1 1 . Energy Cannon . | . . . . . Ballistic Gun 10 | 2 . 5 2 1 Ballistic Cannon 1 | . . 1 . . Launcher 6 | . 1 . 4 1 Special Weapon 2 | . . . 2 . Impact Weapon 2 | . . . 1 1 Slashing Weapon . | . . . . . Piercing Weapon . | . . . . . Special Melee Weapon 1 | . . 1 . . Unidentified Prototypes 1 | . . . 1 . Parts Lost 23 | . 4 3 4 12 Power 3 | . 1 . 1 1 Propulsion 8 | . 2 1 1 4 Utility 3 | . . . 1 2 Weapon 9 | . 1 2 1 5 Highest Loss Streak 5 | . 4 2 4 5 To Critical Strikes . | . . . . . Average Slot Usage (%) 91 | . 92 89 98 81 Engine 8 | . 11 8 8 . Treads 11 | . 12 14 9 4 Wheel 7 | . 12 5 8 8 Device 12 | . 14 15 9 7 Storage 10 | . 14 11 8 9 Processor 4 | . . . 8 9 Hackware 3 | . . 1 8 . Protection 2 | . . 3 . 5 Energy Gun 5 | . . 4 9 1 Ballistic Gun 15 | . 23 18 11 6 Ballistic Cannon 5 | . . 5 8 . Launcher 2 | . 2 . 2 6 Impact Weapon 2 | . . . . 16 Naked Turns . | . . . . . Heaviest Build 66 | 14 14 39 60 66 Greatest Support 40 | 10 20 40 20 10 Greatest Overweight (x) 14 | 3 2 3 5 14 Average Overweight (x) 1 | . 1 . 3 5 Largest Inventory Capacity 20 | 8 8 15 20 20 Average Capacity 12 | 6 8 10 16 20 Most Carried 19 | 7 8 11 19 15 Average Carried 10 | 3 7 8 13 12 Final Capacity 20 | 8 8 15 20 20 Final Carried 15 | 7 8 11 15 11 Class Distribution -------------------- 36% | Scavenger-Skirmisher 23% | Mutant 19% | Skirmisher 12% | Scavenger-Tank 6% | Scavenger-Mutant Dominant Class ---------------- Mutant | -10/Materials Skirmisher | -9/Materials Scavenger-Skirmisher | -8/Materials Scavenger-Mutant | -8/Garrison Resources | -11 -10 -9 -8 -8 ----------- Run | Yrd Mat Mat Mat Gar Matter Collected 1371 | 208 175 615 269 104 Remotely . | . . . . . Salvage Created 1840 | 80 374 626 624 136 Parts 118 | 7 21 44 38 8 Haulers Intercepted 2 | . . . 2 . Recyclers Shooed 1 | . . 1 . . Parts Field Recycled . | . . . . . Retrieved Matter . | . . . . . Parts Self-Destructed . | . . . . . Prevented . | . . . . . Kills | -11 -10 -9 -8 -8 ------- Run | Yrd Mat Mat Mat Gar Combat Hostiles Destroyed 43 | . 11 16 10 6 Melee 1 | . . . . 1 Guns 23 | . 5 15 2 1 Cannons 1 | . . 1 . . AOE 17 | . 6 . 7 4 Classes Destroyed 14 | 2 3 5 3 1 Worker 6 | . 1 2 3 . Builder 5 | . 1 1 3 . Tunneler 4 | 2 . . 2 . Hauler 2 | . . . 2 . Recycler 4 | 1 . 1 2 . Mechanic 1 | . . 1 . . Operator 2 | . . 2 . . Watcher 5 | . . 3 2 . Swarmer 6 | . . 6 . . Cutter 2 | . . . . 2 Grunt 27 | . 11 7 7 2 Duelist 1 | . . . 1 . Sentry 6 | . . 3 1 2 Hunter 1 | . . . 1 . Best Kill Streak 10 | 2 8 7 10 2 Combat Bots Only 6 | . 6 6 6 2 Max Kills in Single Turn 5 | 1 4 2 5 1 Gunslinging 1 | . . 1 . . Exploded 4 | . 4 . 2 1 Melee 1 | . . . . 1 Uniques/NPCs Destroyed . | . . . . . Combat | -11 -10 -9 -8 -8 -------- Run | Yrd Mat Mat Mat Gar Hostile Shots Fired 314 | . 66 88 61 99 Missed 84 | . 10 32 16 26 Damage Taken 3448 | . 726 623 725 1374 Core 875 | . 213 110 136 416 Absorbed by Shields . | . . . . . Core Remaining (%) 62 | 100 14 72 . . Volleys Fired 122 | 5 32 47 25 13 Largest 4 | 2 2 3 4 2 Hottest 163 | 40 50 127 163 101 Shots Fired 282 | 10 62 131 58 21 Gun 229 | 10 60 118 28 13 Cannon 25 | . . 12 13 . Launcher 20 | . 2 1 9 8 Special 8 | . . . 8 . Kinetic 234 | 10 60 124 31 9 Thermal 28 | . . 6 18 4 Explosive 20 | . 2 1 9 8 Electromagnetic . | . . . . . Robot Hit Streak 11 | 8 9 11 6 4 Robot Miss Streak 8 | . 3 8 7 4 Penetration Max . | . . . . . Secondary Targets 6 | . 2 4 . . Max Gunslinging Chain 2 | . 1 2 . . Shots Hit Robots 191 | 8 41 87 36 19 Core Hits 133 | 4 26 49 40 14 Critical Kills 1 | . . . . 1 Critical Parts Destroyed 1 | . . . 1 . Critical Strikes 2 | . . . 1 1 Destroy 1 | . . . 1 . Smash 1 | . . . . 1 Melee Attacks 15 | . . . 4 11 Impact 15 | . . . 4 11 Slashing . | . . . . . Piercing . | . . . . . Sneak Attacks . | . . . . . Combat Hostiles . | . . . . . Follow-up Attacks 1 | . . . . 1 Damage Inflicted 4988 | 83 1005 1382 1744 774 Guns 2018 | 83 406 1115 284 130 Cannons 262 | . . 142 120 . Explosions 2148 | . 599 125 1138 286 Melee 559 | . . . 201 358 Ramming 1 | . . . 1 . Kinetic 2044 | 83 406 1186 298 71 Thermal 611 | . 375 71 106 59 Explosive 1773 | . 224 125 1138 286 Electromagnetic . | . . . . . Impact 559 | . . . 201 358 Slashing . | . . . . . Piercing . | . . . . . Highest Corruption 5 | . 5 . . 5 Average Corruption 3 | . 3 . . 5 Corruption Purged . | . . . . . Corruption Blocked . | . . . . . Effects 8 | . 6 . . 2 Message Errors 1 | . 1 . . . Matter Fused 3 | . 2 . . 1 Heat Flow Errors 1 | . . . . 1 Energy Discharges 1 | . 1 . . . Data Loss (minor) 2 | . 2 . . . Overload Shots . | . . . . . Overflow Damage 201 | . 96 3 78 24 Projectiles 12 | . . . 12 . Explosions 118 | . 96 3 17 2 Melee 71 | . . . 49 22 Knockbacks 4 | . . . 3 1 Impact 3 | . . . 2 1 Kinetic 1 | . . . 1 . Secondary . | . . . . . Self-Inflicted Damage 395 | . 16 . 168 211 Shots 10 | . 1 . 4 5 Rammed 1 | . . . 1 . Targets Rammed 1 | . . . 1 . Kicked . | . . . . . Crushed . | . . . . . Highest Temperature 311 | . 71 112 311 172 Average Temperature 49 | . 22 29 114 46 Received Heat Transfer 1326 | . 447 249 81 549 Effects 1 | . . . 1 . Damage (minor) 1 | . . . 1 . Siege Activations . | . . . . . Robots Corrupted . | . . . . . Combat Hostiles . | . . . . . Parts Fried . | . . . . . Impact Corruptions 4 | . . . 2 2 Robots Melted . | . . . . . Combat Hostiles . | . . . . . Parts Melted . | . . . . . Heat Transferred 540 | . 250 90 130 70 Parts Sabotaged . | . . . . . Parts Stolen . | . . . . . Parts Stripped . | . . . . . Power Chain Reactions . | . . . . . Alert | -11 -10 -9 -8 -8 ------- Run | Yrd Mat Mat Mat Gar Peak Influence 415 | 15 310 341 319 415 Initial 207 | . 9 130 50 207 Average 152 | 5 107 185 73 314 Maximum Alert Level 2 | . 1 1 1 2 Low Security (%) 70 | 100 87 63 96 . Level 1 29 | . 12 36 3 97 Level 2 . | . . . . 2 Level 3 . | . . . . . Level 4 . | . . . . . Level 5 . | . . . . . High Security . | . . . . . Max Security . | . . . . . Squads Dispatched 7 | . 2 2 3 . Investigation 2 | . 2 . . . Extermination . | . . . . . Reinforcement 4 | . . 2 2 . Assault . | . . . . . Garrison 1 | . . . 1 . Intercept . | . . . . . Searches Triggered . | . . . . . Construction Impeded 1 | . . . 1 . Haulers Reinforced . | . . . . . Active Scanning Responses . | . . . . . Cargo Convoy Interrupts . | . . . . . Stealth | -11 -10 -9 -8 -8 --------- Run | Yrd Mat Mat Mat Gar Distress Signals 6 | . . 1 5 . Communications Jammed . | . . . . . Distress Signals . | . . . . . Times Spotted 73 | . 13 31 20 9 Peak Tracking Total 7 | . 7 7 5 4 Tactical Retreats 4 | . . 3 1 . Traps | -11 -10 -9 -8 -8 ------- Run | Yrd Mat Mat Mat Gar Traps Triggered 5 | . 3 . . 2 Indirectly . | . . . . . Trap Hack Attempts . | . . . . . Triggered . | . . . . . Disarmed . | . . . . . Reprogrammed . | . . . . . Reused . | . . . . . Traps Extracted . | . . . . . Installed . | . . . . . Triggered . | . . . . . Machines | -11 -10 -9 -8 -8 ---------- Run | Yrd Mat Mat Mat Gar Machines Disabled 9 | . 3 1 4 1 Max in Single Turn 3 | . 3 1 2 1 Garrison Relay 1 | . . . . 1 Machines Repaired . | . . . . . Machines Dismantled . | . . . . . Machines Sabotaged . | . . . . . Overloaded Fab Kills . | . . . . . Hacking | -11 -10 -9 -8 -8 --------- Run | Yrd Mat Mat Mat Gar Machines Accessed 15 | . 3 7 4 1 Terminals 12 | . 2 6 3 1 Fabricators . | . . . . . Repair Stations . | . . . . . Recycling Units 2 | . 1 1 . . Scanalyzers . | . . . . . Garrison Access 1 | . . . 1 . Total Hacks 33 | . 9 12 11 1 Successful 15 | . 4 5 6 . Failed 18 | . 5 7 5 1 Catastrophic 3 | . 2 1 . . Database Lockouts . | . . . . . Manual 14 | . 4 4 6 . Terminals 26 | . 6 11 8 1 Fabricators . | . . . . . Repair Stations . | . . . . . Recycling Units 4 | . 3 1 . . Scanalyzers . | . . . . . Garrison Access 3 | . . . 3 . Terminal Hacks 11 | . 2 4 5 . Record 1 | . . 1 . . Branch Access Points 1 | . . . 1 . Alert Level 1 | . 1 . . . Unreport Threat 2 | . . 1 1 . Reinforcement Status 1 | . . 1 . . Recall Reinforcements 1 | . . . 1 . Hauler Manifests 1 | . 1 . . . Zone Layout 3 | . . 1 2 . Fabricator Hacks . | . . . . . Repair Station Hacks . | . . . . . Recycling Unit Hacks 3 | . 2 1 . . Process 1 | . 1 . . . Retrieve Components 2 | . 1 1 . . Scanalyzer . | . . . . . Garrison Access Hacks 1 | . . . 1 . Unlock Access 1 | . . . 1 . Unauthorized Hacks . | . . . . . Terminals . | . . . . . Fabricators . | . . . . . Repair Stations . | . . . . . Recycling Units . | . . . . . Scanalyzers . | . . . . . Garrison Access . | . . . . . Data Cores Recovered . | . . . . . Used . | . . . . . Hacking Detections 11 | . 2 5 4 . Full Trace Events 2 | . 2 . . . Feedback Events 1 | . 1 . . . Corruption 1 | . 1 . . . Feedback Blocked . | . . . . . Robot Schematics Acquired . | . . . . . Robots Built . | . . . . . Authchips . | . . . . . Time . | . . . . . Total Robot Build Rating . | . . . . . Part Schematics Acquired . | . . . . . Parts Built . | . . . . . Authchips . | . . . . . Time . | . . . . . Total Part Build Rating . | . . . . . Parts Repaired . | . . . . . Time . | . . . . . Parts Recycled . | . . . . . Recycled Matter . | . . . . . Retrieved Matter . | . . . . . Retrieved Components 17 | . 7 10 . . Parts Scanalyzed . | . . . . . Part Schematics Acquired . | . . . . . Parts Damaged . | . . . . . Bothacking | -11 -10 -9 -8 -8 ------------ Run | Yrd Mat Mat Mat Gar Used RIF Installer . | . . . . . Robots Hacked . | . . . . . Non-combat . | . . . . . Combat . | . . . . . Robot Hacks Applied . | . . . . . Relay Couplers Released 5 | . . . . 5 Machine Destruction 5 | . . . . 5 Fabnet Peak Effective % . | . . . . . Robots Rewired . | . . . . . Allies Hacked . | . . . . . Hacks Repelled . | . . . . . Allies | -11 -10 -9 -8 -8 -------- Run | Yrd Mat Mat Mat Gar Total Allies . | . . . . . Largest Group . | . . . . . Highest-Rated Group . | . . . . . Highest-Rated Ally . | . . . . . Total Orders . | . . . . . Ally Attacks . | . . . . . Total Damage . | . . . . . Kills . | . . . . . Allies Corrupted . | . . . . . Allies Melted . | . . . . . Intel | -11 -10 -9 -8 -8 ------- Run | Yrd Mat Mat Mat Gar Robot Analysis Total . | . . . . . Derelict Logs Recovered . | . . . . . Drone Launches . | . . . . . Drone Recoveries . | . . . . . Exploration | -11 -10 -9 -8 -8 ------------- Run | Yrd Mat Mat Mat Gar Turns Passed 2958 | 71 241 1330 982 334 Spaces Moved 1613 | 49 145 830 438 151 Core 109 | 30 18 60 . 1 Treads 415 | . 1 320 94 . Legs . | . . . . . Wheels 1089 | 19 126 450 344 150 Hover . | . . . . . Flight . | . . . . . Fastest Speed 50 | 50 80 100 95 140 Average Speed 140 | 73 102 136 158 164 Slowest Speed 750 | 200 160 240 250 750 Overloaded Moves . | . . . . . Propulsion Burnouts . | . . . . . Robots Hopped . | . . . . . Cave-ins Triggered . | . . . . . Exploration Rate (%) 26 | 4 23 49 39 18 Regions Visited 4 Branch Regions . Pre-discovered Areas . | . . . . . Known Exits Taken 1 | . . . 1 . Unknown Exits Taken 3 | 1 1 1 . . Scrap Searched . | . . . . . Spaces Dug 8 | . . . 8 . Terrain Destroyed 123 | . 11 5 62 45 Melee . | . . . . . Projectile 8 | . . . 8 . AOE 115 | . 11 5 54 45 Terrain Rammed . | . . . . . Walls Destroyed . | . . . . . Machines Disabled . | . . . . . Actions | -11 -10 -9 -8 -8 --------- Run | Yrd Mat Mat Mat Gar Total 2029 | 72 182 924 653 198 Wait 140 | . . 7 133 . Move 1609 | 48 144 829 437 151 Hop . | . . . . . Pick Up 55 | 11 3 15 24 2 Fast Attach 7 | 3 . 3 1 . Attach 24 | 4 . 8 6 6 Detach . | . . . . . Swap 21 | 1 1 7 12 . Drop 20 | . 2 8 10 . Fire 122 | 5 32 47 25 13 Melee 14 | . . . 4 10 Ram . | . . . . . Kick . | . . . . . Crush 1 | . . . 1 . Escape Stasis 16 | . . . . 16 Rewire . | . . . . . Trap . | . . . . . Miscellaneous . | . . . . . Route ------- -11/Scrapyard -10/Materials -9/Materials (discovered 2 exits: *Mat x2) -8/Materials -8/Garrison History --------- Turn | Location | Event 2 | -11/Scrapyard | Met Revision 17 17 | -11/Scrapyard | Discovered new exit (range 15) 72 | -11/Scrapyard | Entered Materials 113 | -10/Materials | Discovered new exit (range 15) 283 | -10/Materials | Core integrity fell below 50% 288 | -10/Materials | Core integrity fell below 20% 313 | -10/Materials | Entered another Materials area 313 | -9/Materials | Evolved 2 slots: Utility x1, Weapon x1 316 | -9/Materials | Build established: Mutant 316 | -9/Materials | Lost 4 parts (1p2n1w) 819 | -9/Materials | Build established: Skirmisher 1217 | -9/Materials | Discovered new exit (range 9) 1434 | -9/Materials | Build established: Scavenger-Tank 1473 | -9/Materials | Discovered new exit (range 15) 1643 | -9/Materials | Entered another Materials area 1643 | -8/Materials | Evolved 2 slots: Utility x1, Weapon x1 1799 | -8/Materials | Build established: Scavenger-Skirmisher 2584 | -8/Materials | Garrison activated, responded to threat 2611 | -8/Materials | Identified exit to Garrison 2623 | -8/Materials | Lost 4 parts (1p1n1u1w) 2625 | -8/Materials | Entered Garrison 2671 | -8/Garrison | Triggered checkpoint 2739 | -8/Garrison | Lost 3 parts (1n2w) 2774 | -8/Garrison | Garrison Relay disabled 2888 | -8/Garrison | Triggered checkpoint 2888 | -8/Garrison | Triggered checkpoint 2892 | -8/Garrison | Core integrity fell below 50% 2934 | -8/Garrison | Lost 5 parts (1p1n2u1w) 2950 | -8/Garrison | Core integrity fell below 20% 2959 | -8/Garrison | Destroyed by G-47 Trooper with Particle Gun Last Messages --------------- 02894_ Lgt. Armor Plating destroyed. 02894_ Destroyed Lgt. Armor Plating. 02897_ The unstable cave ceiling collapses. 02898_ Wheel destroyed. 02903_ Missile Launcher destroyed. 02904_ System corrupted: Matter fused (-5). 02922_ The unstable cave ceiling collapses. 02936_ System corrupted: Heat flow error (+185). 02938_ Lgt. Treads destroyed. 02941_ Hvy. Assault Rifle destroyed. 02944_ Wheel destroyed. 02947_ Power Maul destroyed. 02947_ Critical hit (Burn: +37). 02948_ The unstable cave ceiling collapses. 02950_ Destroyed Aluminum Leg. 02950_ G-47 Trooper system corrupted by crushing effect. 02950_ G-47 Trooper knocked back. 02951_ Critical hit (Burn: +37). 02953_ Destroyed Unknown Engine. 02953_ Y-45 Defender system corrupted by crushing effect. Map ----- +----------------------------------------------------+ | # #########! #???????????????????????????????? | | # #?????# ##[###?#######???????????????????????? | | # #?????### [#??# ! #???????????????????????? | | # #??###### ##### !!###??????????????????????? | | # #??# ! #??????????????????????? | | # #??# #??????????????????????? | | # #??# ########## ## #??????????????????????? | | # #??# #????????##### #??????????????????????? | | # #### #################??????????????????????? | | #??????????????????????? | | # #??????????????????????? | | # #??????????????????????? | | ####################### #??????????????????????? | | ??????????????????????# #??????????????????????? | | ??????????????????????# #??????????????????????? | | ??????????????????????# #??????????????????????? | | ??????????????????????# #??????????????????????? | | ??????????????????????# #??????????????????????? | | ??????????????????????# #??????????????????????? | | ??????????????????????# #??????????????????????? | | ??????????????????????# #??????????????????????? | | ??????????????????????# #??????????????????????? | | ??????????????????????#^ #??????????????????????? | | ??????????????????????# #??????????????????????? | | ??????????????????????# g ###????????????????????? | | ?????????????????????##^Y@# #????????????????????? | | ????????????????????## #????????????????????? | | ????????????????????# g # #??????????????????? | | ????????????????????# # #??????????????????? | | ????????????????????## # #####???????????????? | | ?????????????????????# / ????????? | | ????????????????????## ????????? | | ????????????????????# ????????? | | ????????????????????## # # ##### # ?????????? | | ?????????????????????########????? ???????????? | | ??????????????????????????????????? ???????????? | | ???????????????????????????????????? ???????????? | | ?????????????????????????????????????????????????? | | ?????????????????????????????????????????????????? | | ?????????????????????????????????????????????????? | | ?????????????????????????????????????????????????? | | ?????????????????????????????????????????????????? | | ?????????????????????????????????????????????????? | | ?????????????????????????????????????????????????? | | ?????????????????????????????????????????????????? | | ?????????????????????????????????????????????????? | | ?????????????????????????????????????????????????? | | ?????????????????????????????????????????????????? | | ?????????????????????????????????????????????????? | | ?????????????????????????????????????????????????? | +----------------------------------------------------+ Best States ------------- Heat Dissipation 53 Energy Generation 14 Energy Capacity 250 Matter Stores 246 Matter Capacity 300 Sight Range 16 Terrain Scan Range 16 Terrain Scan Density 85 Armor Coverage 150 Evasion (%) 50 Recoil Reduction 2 Offensive Hacking 10 Item Schematics ----------------- None Robot Schematics ------------------ None Fabricated ------------ Nothing Alien Tech Used ----------------- None Achievements -------------- Let's See Who's Tougher Troublemaker Challenges ------------ None Game ------ Seed SigixLayeredCasing Manual? 0 Play Time 00:47:34 Cumulative 9.6 hours Start 2024.06.09 @ 11:39:11 End 2024.06.09 @ 12:27:48 Sessions 1 Manual Loads 0 Difficulty Rogue Special Mode None Game No. 9 Rogue 9 Adventurer 0 Explorer 0 Win Type - Total 0 Types 0/0/0/0/0/0/0/0/0 Lore% 16 Gallery% 16 Achievement% 18 Wizard Run 0 Options --------- Layout 0 ASCII 0 Keyboard 0 Movement Mouse Keybinds 0 Fullscreen 2 Font 24/Smallcaps Map View 76x50 Zoom Use 0% Tactical HUD 1 Map Filters NONE Filters NONE Steam 1 RUN: af394997-b8de-43d3-b2ad-ed6cc0e295ea